bitfinex/quotes_SOLUSD_20220119
["timestamp","ask_amount","ask_price","bid_price","bid_amount"]
[1642629051399,24.73672435,135.89,135.82,10.6]
[1642629051602,2.05342435,135.91,135.84,11.0393]
[1642629051803,25.71502435,135.91,135.85,0.25]
[1642629052003,23.6616,135.91,135.85,0.25]
[1642629052203,23.6616,135.91,135.85,42.81708798]
[1642629057305,23.6616,135.91,135.85,0.25]
[1642629057506,25.71502435,135.91,135.84,11.0393]
[1642629057706,25.71502435,135.91,135.85,0.25]
[1642629058008,23.6616,135.91,135.85,11.2888]
[1642629058407,23.6616,135.91,135.85,51.99721347]
[1642629060309,25.71502435,135.91,135.83,11.0401]
[1642629060509,25.71502435,135.91,135.83,11.2901]
[1642629061011,23.6616,135.91,135.83,11.2901]
[1642629061210,25.71502435,135.91,135.84,44.55113646]
[1642629061411,25.71502435,135.91,135.85,11.0391]
[1642629061610,23.6616,135.91,135.85,11.2891]
[1642629062411,25.71502435,135.91,135.85,11.2891]
[1642629063210,23.6616,135.91,135.85,11.2891]
[1642629063940,25.71502435,135.91,135.85,11.2891]
[1642629066442,25.71502435,135.91,135.85,0.25]
[1642629066843,0.25,135.9,135.8,10.6]
[1642629067044,6.25,135.9,135.8,10.6]
[1642629067243,2.05342435,135.89,135.81,41.82763429]
[1642629067446,4.99742435,135.89,135.81,41.82763429]
[1642629067644,0.25,135.88,135.81,41.82763429]
[1642629068044,28.30722435,135.89,135.81,52.86943429]
[1642629068247,25.36322435,135.89,135.82,0.25]
[1642629068444,23.3098,135.89,135.82,0.25]
[1642629069247,23.3098,135.89,135.83,11.0405]
[1642629070647,23.3098,135.89,135.84,11.2892]
[1642629070849,23.3098,135.89,135.84,11.0392]
[1642629071049,23.3098,135.89,135.85,0.25]
[1642629071548,2.05342435,135.91,135.85,0.25]
[1642629071748,26.27422435,135.91,135.85,0.25]
[1642629078456,2.05342435,135.9,135.83,0.25]
[1642629078855,2.05342435,135.9,135.83,10.6]
[1642629079056,26.27422435,135.91,135.83,10.6]
[1642629079259,26.27422435,135.91,135.84,0.25]
[1642629079555,26.27422435,135.91,135.84,11.2895]
[1642629080958,26.27422435,135.91,135.84,0.25]
[1642629081158,2.05342435,135.9,135.84,0.25]
[1642629081557,2.05342435,135.9,135.83,0.25]
[1642629088465,2.05342435,135.9,135.82,11.3009]
[1642629088665,0.25,135.89,135.82,11.0409]
[1642629088866,2.05342435,135.9,135.82,11.0409]
[1642629089469,2.05342435,135.9,135.82,21.6409]
[1642629089869,2.05342435,135.9,135.83,0.25]
[1642629094201,26.27422435,135.91,135.83,0.25]
[1642629094400,2.05342435,135.9,135.83,0.25]
[1642629094600,2.30342435,135.9,135.83,0.25]
[1642629095002,2.05342435,135.9,135.83,0.25]
[1642629099510,2.30342435,135.89,135.82,21.6409]
[1642629100012,2.30342435,135.89,135.82,10.6]
[1642629101011,2.05342435,135.88,135.82,10.6]
[1642629101213,47.82425816,135.87,135.82,10.6]
[1642629101415,47.82425816,135.87,135.8,11.0425]
[1642629101612,24.631,135.86,135.79,10.6]
[1642629101813,24.631,135.86,135.78,2.08027963]
[1642629102013,8.945,135.85,135.77,2.08027963]
[1642629102213,8.945,135.85,135.76,21.77908321]
[1642629102214,23.2446,135.84,135.76,23.85936284]
[1642629102414,23.2446,135.84,135.77,36.87792299]
[1642629103217,23.2446,135.84,135.78,0.25]
[1642629111457,22.9946,135.84,135.78,0.25]
[1642629113660,22.9946,135.84,135.78,11.2944]
[1642629120871,4.99842435,135.9,135.81,11.0416]
[1642629121071,29.2149,135.89,135.81,11.0416]
[1642629121271,29.2149,135.89,135.82,0.25]
[1642629121673,66.99059064,135.89,135.82,43.97843327]
[1642629126276,60.99059064,135.89,135.82,43.97843327]
[1642629128180,23.2149,135.89,135.82,43.97843327]
[1642629128384,23.2149,135.89,135.82,55.27963327]
[1642629130382,23.2149,135.89,135.82,58.22363327]
[1642629138186,23.2149,135.89,135.82,14.2352]
[1642629138387,23.2149,135.89,135.82,11.2912]
[1642629138691,0.25,135.88,135.79,10.6]
[1642629138887,3.194,135.88,135.8,0.25]
[1642629139288,14.2384,135.88,135.8,0.25]
[1642629139490,22.7267,135.87,135.8,0.25]
[1642629139692,0.25,135.86,135.8,0.25]
[1642629145621,22.7267,135.87,135.8,0.25]
[1642629151729,22.7267,135.87,135.79,62.63893458]
[1642629152332,22.7267,135.87,135.79,64.71921421]
[1642629152930,22.7267,135.87,135.8,0.25]
[1642629153131,22.7267,135.87,135.8,11.2928]
[1642629159238,23.3922,135.9,135.8,25.67806848]
[1642629159535,23.3922,135.9,135.83,11.0395]
[1642629159734,23.3922,135.9,135.84,0.25]
[1642629160135,23.3922,135.9,135.84,43.65150687]
[1642629161436,23.3922,135.9,135.84,54.69070687]
[1642629163339,2.05342435,135.93,135.84,54.69070687]
[1642629163538,45.59141053,135.93,135.85,2.943]
[1642629163739,45.59141053,135.93,135.86,0.25]
[1642629164141,23.2385,135.92,135.86,0.25]
[1642629166442,23.2385,135.92,135.85,11.0383]
[1642629166643,23.2385,135.92,135.83,13.9832]
[1642629166844,0.25,135.91,135.83,13.9832]
[1642629167045,6.25,135.91,135.83,13.9832]
[1642629167446,24.3027,135.9,135.83,13.9832]
[1642629167644,24.3027,135.9,135.83,58.50806084]
[1642629167849,24.3027,135.9,135.84,0.25]
[1642629168645,24.3027,135.9,135.83,58.50806084]
[1642629168845,24.3027,135.9,135.83,55.56506084]
[1642629169446,0.25,135.89,135.83,55.56506084]
[1642629169646,0.25,135.89,135.83,11.0402]
[1642629170048,6.25,135.89,135.81,11.042]
[1642629170253,6.25,135.89,135.81,6.25]
[1642629170455,6.25,135.89,135.81,0.25]
[1642629170655,46.64228365,135.88,135.81,0.25]
[1642629171256,24.0381,135.87,135.81,0.25]
[1642629173458,2.944,135.95,135.84,69.0]
[1642629173658,9.15365126,136.03,135.97,11.53328988]
[1642629173860,45.3825282,136.05,135.97,11.53328988]
[1642629174059,54.46725126,136.07,135.98,10.6]
[1642629174260,4.16049266,136.04,135.98,16.6]
[1642629174459,7.10049266,136.06,135.98,16.6]
[1642629174660,2.94,136.06,135.98,16.6]
[1642629174862,4.16091883,136.05,135.99,0.25]
[1642629175060,45.71124789,136.05,135.98,10.6]
[1642629176264,2.94,136.04,135.98,10.6]
[1642629176496,3.19,136.04,135.98,10.6]
[1642629178087,2.94,136.04,135.98,10.6]
[1642629178486,45.71124789,136.05,135.98,10.6]
[1642629178785,0.25,136.04,135.98,10.6]
[1642629180087,45.71124789,136.05,135.98,10.6]
[1642629180489,45.71124789,136.05,135.98,21.6283]
[1642629181088,45.71124789,136.05,135.99,0.25]
[1642629181288,45.71124789,136.05,136.0,10.6]
[1642629181892,0.25,136.04,136.0,10.6]
[1642629182093,9.19,136.04,136.0,10.6]
[1642629183093,3.19,136.04,136.0,10.6]
[1642629183894,2.94,136.04,136.0,10.6]
[1642629184295,0.25,136.03,136.0,10.6]
[1642629184798,51.93596075,136.02,136.0,10.6]
[1642629186697,51.93596075,136.02,135.96,2.94]
[1642629186898,51.93596075,136.02,135.97,10.6]
[1642629187399,51.93596075,136.02,135.98,0.25]
[1642629187598,3.0321,136.02,135.97,10.6]
[1642629187798,2.941,136.04,135.97,10.6]
[1642629187998,0.25,136.04,135.98,0.25]
[1642629188399,0.25,136.04,135.97,10.6]
[1642629188601,43.43901087,136.04,135.97,10.6]
[1642629191205,43.43901087,136.04,135.98,0.25]
[1642629193203,0.0051,136.12,135.99,79.6]
[1642629193404,10.9525,136.16,136.05,132.55]
[1642629193604,50.1043,136.2,136.06,19.538]
[1642629193808,50.1043,136.2,136.06,20.048]
[1642629194006,47.1653,136.2,136.08,132.55]
[1642629194205,42.55294319,136.19,136.1,132.55]
[1642629194406,47.1255,136.27,136.11,13.538]
[1642629194606,2.936,136.25,136.11,19.788]
[1642629194806,24.1096,136.25,136.11,20.048]
[1642629195006,6.0,136.24,136.11,24.8053]
[1642629195233,2.936,136.23,136.11,24.8053]
[1642629195409,36.23775768,136.22,136.11,21.8673]
[1642629195608,2.936,136.21,136.11,21.8673]
[1642629196012,36.83367356,136.19,136.11,21.8673]
[1642629196310,39.76967356,136.19,136.11,21.8673]
[1642629196509,0.25,136.18,136.11,21.8673]
[1642629197412,0.9015977,136.2,136.12,73.53]
[1642629197610,2.936,136.22,136.16,73.53]
[1642629197817,22.7664,136.29,136.18,206.08]
[1642629198010,22.7664,136.29,136.19,19.536]
[1642629198309,2.936,136.32,136.19,93.576]
[1642629198511,41.75968529,136.31,136.19,13.786]
[1642629198710,2.935,136.3,136.21,11.0092]
[1642629198912,2.935,136.3,136.22,10.6]
[1642629198913,6.0,136.3,136.22,10.6]
[1642629199111,2.935,136.3,136.22,10.85]
[1642629199310,41.75968529,136.31,136.23,3.185]
[1642629199510,41.75968529,136.31,136.24,10.6]
[1642629199711,41.75968529,136.31,136.25,3.185]
[1642629199911,41.75968529,136.31,136.26,10.6]
[1642629200313,2.935,136.3,136.26,10.6]
[1642629200714,2.935,136.3,136.23,10.6]
[1642629201012,1.82712602,136.29,136.23,10.6]
[1642629201213,35.05752484,136.28,136.23,10.6]
[1642629203147,35.05752484,136.28,136.2,21.6105]
[1642629203347,35.05752484,136.28,136.2,21.8605]
[1642629204648,35.05752484,136.28,136.21,2.935]
[1642629204847,0.25,136.27,136.2,10.85]
[1642629205048,3.185,136.27,136.2,10.85]
[1642629205249,2.935,136.27,136.2,10.85]
[1642629205448,2.935,136.27,136.2,10.6]
[1642629205648,37.03570282,136.25,136.18,2.935]
[1642629205850,37.03570282,136.25,136.14,2.936]
[1642629206048,11.01312602,136.24,136.15,11.0142]
[1642629206848,11.01312602,136.24,136.16,0.25]
[1642629207550,8.936,136.24,136.16,0.25]
[1642629208151,0.25,136.23,136.16,0.25]
[1642629208353,0.25,136.23,136.16,3.186]
[1642629209353,0.25,136.23,136.16,0.25]
[1642629210858,0.25,136.23,136.13,11.0159]
[1642629211058,44.87129682,136.21,136.13,11.0159]
[1642629211356,3.186,136.2,136.1,2.936]
[1642629211557,9.186,136.2,136.08,36.7231]
[1642629211762,6.25,136.2,136.09,8.938]
[1642629212159,0.25,136.2,136.11,11.0176]
[1642629212563,6.25,136.2,136.12,0.25]
[1642629212760,6.25,136.2,136.09,8.938]
[1642629213365,1.82712602,136.19,136.09,8.938]
[1642629213563,48.59102221,136.18,136.09,8.938]
[1642629214265,48.59102221,136.18,136.09,9.198]
[1642629214463,48.59102221,136.18,136.09,8.938]
[1642629214664,48.59102221,136.18,136.09,19.9574]
[1642629214866,0.25,136.17,136.09,2.938]
[1642629215066,2.938,136.17,136.09,2.938]
[1642629215465,38.65783323,136.15,136.09,2.938]
[1642629215766,38.65783323,136.15,136.08,11.0202]
[1642629216164,38.65783323,136.15,136.09,0.25]
[1642629216366,38.65783323,136.15,136.09,3.188]
[1642629216566,38.65783323,136.15,136.09,0.25]
[1642629216769,23.3805,136.18,136.09,11.2693]
[1642629216968,2.938,136.19,136.1,2.938]
[1642629217167,13.538,136.23,136.11,0.25]
[1642629217368,10.6,136.23,136.1,12.04741754]
[1642629217569,6.0,136.22,136.1,18.29741754]
[1642629217768,36.6976548,136.21,136.1,18.55741754]
[1642629217970,36.6976548,136.21,136.13,73.53]
[1642629218170,22.5284,136.24,136.14,0.25]
[1642629218370,45.7052,136.26,136.14,13.786]
[1642629218572,45.7052,136.26,136.14,15.23341754]
[1642629218771,45.7052,136.26,136.15,73.53]
[1642629218971,45.7052,136.26,136.16,2.936]
[1642629219175,45.60763322,136.25,136.16,3.186]
[1642629219375,45.60763322,136.25,136.16,3.446]
[1642629220176,45.60763322,136.25,136.19,11.011]
[1642629220577,45.60763322,136.25,136.2,0.25]
[1642629223898,45.60763322,136.25,136.17,11.2627]
[1642629224506,45.60763322,136.25,136.17,11.5227]
[1642629225099,45.60763322,136.25,136.18,2.936]
[1642629225300,45.60763322,136.25,136.19,0.25]
[1642629225706,45.60763322,136.25,136.18,2.936]
[1642629225901,45.60763322,136.25,136.19,0.25]
[1642629226101,45.60763322,136.25,136.17,11.0127]
[1642629227304,45.60763322,136.25,136.18,0.25]
[1642629229203,0.25,136.24,136.18,0.25]
[1642629229403,0.25,136.24,136.15,13.9502]
[1642629229606,6.25,136.24,136.15,2.936]
[1642629229803,8.07712602,136.24,136.15,2.936]
[1642629230002,8.07712602,136.24,136.16,0.25]
[1642629230203,11.01312602,136.24,136.16,0.25]
[1642629230403,3.186,136.24,136.16,11.2637]
[1642629230804,2.936,136.24,136.16,11.2637]
[1642629231306,45.60763322,136.25,136.17,2.936]
[1642629231804,45.60763322,136.25,136.18,0.25]
[1642629232004,45.60763322,136.25,136.17,2.936]
[1642629232206,45.60763322,136.25,136.18,0.25]
[1642629232805,45.60763322,136.25,136.17,0.25]
[1642629233209,45.60763322,136.25,136.17,11.2629]
[1642629233606,45.60763322,136.25,136.17,11.5229]
[1642629234007,45.60763322,136.25,136.18,2.936]
[1642629234210,45.60763322,136.25,136.19,0.25]
[1642629234507,45.60763322,136.25,136.19,11.2612]
[1642629236708,45.60763322,136.25,136.19,11.0112]
[1642629240711,45.60763322,136.25,136.17,11.2725]
[1642629240913,45.60763322,136.25,136.17,11.2625]
[1642629241113,45.60763322,136.25,136.17,11.5225]
[1642629241514,45.60763322,136.25,136.17,11.2625]
[1642629241714,0.25,136.24,136.16,2.936]
[1642629241915,0.25,136.24,136.17,0.25]
[1642629242513,0.25,136.24,136.15,13.9501]
[1642629242713,45.19460199,136.22,136.16,0.25]
[1642629243516,6.0,136.21,136.16,0.25]
[1642629244715,6.0,136.21,136.15,2.936]
[1642629245914,45.19460199,136.22,136.13,11.0158]
[1642629246116,2.936,136.21,136.11,2.936]
[1642629246315,38.4762,136.21,136.1,2.936]
[1642629246520,7.82712602,136.2,136.08,2.936]
[1642629246721,44.49555986,136.19,136.07,2.938]
[1642629246920,46.32268588,136.19,136.07,2.938]
[1642629247122,6.0,136.18,136.07,2.938]
[1642629247320,2.938,136.17,136.07,2.938]
[1642629247523,47.43436229,136.16,136.08,0.25]
[1642629248750,47.43436229,136.16,136.07,13.9587]
[1642629250051,47.43436229,136.16,136.08,0.25]
[1642629250253,0.25,136.15,136.07,2.938]
[1642629250453,3.188,136.15,136.03,2.938]
[1642629250658,56.36422602,136.15,136.03,2.938]
[1642629251652,56.36422602,136.15,136.04,0.25]
[1642629252257,67.38762602,136.15,136.04,0.25]
[1642629252855,65.5605,136.15,136.04,0.25]
[1642629255160,65.5605,136.15,136.04,11.2734]
[1642629255559,65.5605,136.15,136.04,10.7734]
[1642629255960,65.5605,136.15,136.05,2.939]
[1642629257262,65.5605,136.15,136.06,0.25]
[1642629261867,62.6225,136.15,136.06,0.25]
[1642629263476,65.5605,136.15,136.06,0.25]
[1642629265480,65.5605,136.15,136.05,2.939]
[1642629265682,65.5605,136.15,136.03,13.963]
[1642629265878,65.5605,136.15,136.04,0.25]
[1642629267602,65.5605,136.15,136.03,11.024]
[1642629269011,65.5605,136.15,136.04,0.25]
[1642629272110,65.5605,136.15,136.04,11.2734]
[1642629272313,65.5605,136.15,136.04,11.0234]
[1642629272910,54.5371,136.15,136.05,0.25]
[1642629273211,51.3491,136.15,136.06,73.53]
[1642629273410,51.3491,136.15,136.06,91.14]
[1642629273612,45.3491,136.15,136.07,0.25]
[1642629275312,45.3491,136.15,136.08,11.0197]
[1642629275712,45.3491,136.15,136.09,0.25]
[1642629276714,2.938,136.18,136.08,0.25]
[1642629276913,4.13458533,136.21,136.09,21.6192]
[1642629276914,48.9424,136.2,136.09,21.6192]
[1642629277113,48.9424,136.2,136.1,76.466]
[1642629277313,48.9424,136.2,136.11,10.6]
[1642629277514,48.9424,136.2,136.12,2.936]
[1642629277713,48.9424,136.2,136.12,3.446]
[1642629277913,48.9424,136.2,136.13,11.016]
[1642629278113,36.91041898,136.21,136.13,11.016]
[1642629278315,36.91041898,136.21,136.14,0.25]
[1642629279312,36.91041898,136.21,136.14,11.0148]
[1642629279512,36.91041898,136.21,136.14,13.9508]
[1642629279715,36.91041898,136.21,136.15,0.25]
[1642629279914,51.3839,136.24,136.15,0.25]
[1642629280117,6.0,136.23,136.15,8.308]
[1642629280316,6.25,136.23,136.15,8.308]
[1642629280516,48.4479,136.24,136.15,8.308]
[1642629280714,48.4479,136.24,136.17,11.0127]
[1642629281119,48.4479,136.24,136.18,0.25]
[1642629281716,48.4479,136.24,136.18,19.2109]
[1642629282216,36.18780824,136.26,136.18,19.4709]
[1642629283020,36.18780824,136.26,136.19,73.53]
[1642629283220,49.6148,136.28,136.21,11.0088]
[1642629283621,49.6148,136.28,136.22,0.25]
[1642629284221,43.99912015,136.27,136.22,0.25]
[1642629284824,43.99912015,136.27,136.2,0.25]
[1642629285251,43.99912015,136.27,136.22,11.0088]
[1642629285753,43.99912015,136.27,136.23,0.25]
[1642629286354,42.99912015,136.27,136.23,0.25]
[1642629287453,0.25,136.26,136.22,11.0088]
[1642629287654,0.25,136.26,136.16,13.535]
[1642629287853,23.3755,136.26,136.16,13.535]
[1642629288053,23.3755,136.26,136.16,13.795]
[1642629288753,23.3755,136.26,136.17,0.25]
[1642629289156,23.3755,136.26,136.18,11.0117]
[1642629289454,23.3755,136.26,136.17,8.27857464]
[1642629290755,23.3755,136.26,136.18,0.25]
[1642629291158,23.3755,136.26,136.19,11.0112]
[1642629292058,6.0,136.25,136.17,0.25]
[1642629292260,45.90697261,136.24,136.15,11.0142]
[1642629292459,2.936,136.23,136.15,11.0142]
[1642629292660,8.936,136.23,136.15,11.0142]
[1642629292863,0.25,136.22,136.12,39.6482]
[1642629293063,2.936,136.21,136.1,10.6]
[1642629293265,28.0197,136.22,136.11,2.936]
[1642629293465,25.0817,136.22,136.11,2.936]
[1642629293667,25.0817,136.22,136.13,11.0157]
[1642629293869,25.0817,136.22,136.14,2.936]
[1642629293870,38.74941163,136.21,136.14,2.936]
[1642629294070,38.74941163,136.21,136.13,2.936]
[1642629294269,38.74941163,136.21,136.14,0.25]
[1642629294870,38.74941163,136.21,136.15,11.0141]
[1642629297973,38.74941163,136.21,136.14,0.25]
[1642629298172,38.74941163,136.21,136.13,11.2659]
[1642629299078,0.25,136.2,136.13,11.2659]
[1642629299973,0.25,136.2,136.13,0.25]
[1642629300176,24.1018,136.2,136.11,13.9534]
[1642629300375,24.1018,136.2,136.11,24.5534]
[1642629301378,24.1018,136.2,136.11,13.536]
[1642629301584,6.0,136.19,136.11,2.936]
[1642629301780,46.74390811,136.18,136.09,11.019]
[1642629301979,46.74390811,136.18,136.07,2.938]
[1642629302181,24.0503,136.17,136.07,2.938]
[1642629302583,0.25,136.16,136.07,2.938]
[1642629303183,0.25,136.16,136.07,13.9588]
[1642629304107,0.25,136.16,136.08,0.25]
[1642629304405,0.25,136.16,136.08,11.2701]
[1642629306209,0.25,136.16,136.09,3.60883815]
[1642629306408,0.25,136.16,136.08,11.2701]
[1642629312615,0.25,136.16,136.08,0.25]
[1642629312829,0.25,136.16,136.07,2.938]
[1642629313021,2.938,136.15,136.06,11.0215]
[1642629313222,0.25,136.16,136.07,0.25]
[1642629313223,3.188,136.16,136.07,0.25]
[1642629313421,35.44850595,136.15,136.07,0.25]
[1642629313825,0.25,136.14,136.07,0.25]
[1642629314225,23.3258,136.14,136.07,0.25]
[1642629314423,23.3258,136.14,136.07,4.77308974]
[1642629314827,23.0758,136.14,136.07,15.79408974]
[1642629318427,2.938,136.16,136.08,76.468]
[1642629318629,2.938,136.16,136.1,11.0176]
[1642629318830,2.938,136.16,136.11,2.938]
[1642629319030,2.938,136.16,136.11,3.188]
[1642629319230,23.0564,136.19,136.12,33.91299295]
[1642629319529,73.29797751,136.22,136.13,13.9519]
[1642629319733,73.29797751,136.22,136.13,14.4619]
[1642629321230,24.8955,136.22,136.13,14.4619]
[1642629321632,37.24981331,136.24,136.13,87.9919]
[1642629321832,24.1704,136.24,136.13,87.9919]
[1642629322032,6.0,136.23,136.13,14.4619]
[1642629322236,48.38967557,136.23,136.13,15.90752426]
[1642629322433,48.38967557,136.23,136.13,89.43752426]
[1642629322633,48.38967557,136.23,136.13,100.03752426]
[1642629322869,48.38967557,136.23,136.13,25.0619]
[1642629323668,6.0,136.23,136.13,98.5919]
[1642629323871,6.0,136.23,136.13,100.03752426]
[1642629325170,51.88732609,136.23,136.13,100.03752426]
[1642629326872,51.88732609,136.23,136.13,98.5919]
[1642629328272,51.88732609,136.23,136.13,98.3419]
[1642629329774,51.88732609,136.23,136.14,0.25]
[1642629329973,51.88732609,136.23,136.15,11.0143]
[1642629330176,51.88732609,136.23,136.16,0.25]
[1642629332577,51.88732609,136.23,136.15,11.0143]
[1642629332578,0.25,136.22,136.13,13.9518]
[1642629332777,28.0065,136.22,136.14,0.25]
[1642629333180,28.0065,136.22,136.13,11.0158]
[1642629333380,39.0235,136.22,136.1,2.936]
[1642629333579,47.85754535,136.2,136.1,2.936]
[1642629333781,0.25,136.19,136.11,11.2675]
[1642629334381,0.25,136.19,136.11,11.0175]
[1642629336582,0.25,136.19,136.09,24.555]
[1642629336882,0.25,136.19,136.1,0.25]
[1642629337896,0.25,136.19,136.1,11.2686]
[1642629338095,0.25,136.19,136.11,8.83503501]
[1642629338298,0.25,136.19,136.12,0.25]
[1642629343132,74.89584535,136.2,136.12,3.92021107]
[1642629343332,24.1023,136.2,136.13,2.936]
[1642629343734,24.1023,136.2,136.14,0.25]
[1642629345335,72.13276631,136.2,136.14,0.25]
[1642629346738,72.13276631,136.2,136.13,14.2121]
[1642629346939,72.13276631,136.2,136.13,11.2761]
[1642629347139,72.13276631,136.2,136.13,11.0161]
[1642629347339,0.25,136.19,136.11,11.0173]
[1642629348840,0.25,136.19,136.09,11.0192]
[1642629349341,0.25,136.19,136.1,0.25]
[1642629349540,6.25,136.19,136.1,0.25]
[1642629349744,8.31351331,136.19,136.1,0.25]
[1642629350140,35.1621,136.18,136.1,0.25]
[1642629350342,49.64378093,136.17,136.1,0.25]
[1642629350544,49.89378093,136.17,136.08,0.25]
[1642629353977,49.89378093,136.17,136.07,15.79280836]
[1642629355177,49.64378093,136.17,136.07,15.79280836]
[1642629355385,49.64378093,136.17,136.08,0.25]
[1642629355580,0.25,136.16,136.07,15.79280836]
[1642629355880,0.25,136.16,136.07,13.9586]
[1642629356078,0.25,136.16,136.07,11.0206]
[1642629357280,45.80021694,136.14,136.07,11.0206]
[1642629357478,69.44931694,136.14,136.07,11.0206]
[1642629357677,0.25,136.13,136.07,11.0206]
[1642629373996,0.25,136.13,136.07,12.85480836]
[1642629376098,0.25,136.13,136.07,1.83420836]
[1642629376301,9.28,136.13,136.06,1.83420836]
[1642629377099,24.1428,136.12,136.06,1.83420836]
[1642629377302,14.2154,136.11,136.04,1.83420836]
[1642629377500,14.2154,136.11,136.03,1.83420836]
[1642629377699,24.7213,136.1,136.02,1.83420836]
[1642629377899,29.8813,136.1,136.02,1.83420836]
[1642629378105,48.99908148,136.09,136.02,1.83420836]
[1642629378602,24.0691,136.08,136.02,1.83420836]
[1642629381711,24.0691,136.08,136.01,1.83420836]
[1642629381911,24.0691,136.08,136.01,2.08420836]
[1642629387336,35.0973,136.08,136.01,2.08420836]
[1642629388036,35.0973,136.08,136.01,0.25]
[1642629388236,35.0973,136.08,136.01,2.08420836]
[1642629388436,35.0973,136.08,136.01,0.25]
[1642629389740,24.0691,136.08,136.01,0.25]
[1642629392941,35.0971,136.08,136.0,4.77420836]
[1642629393142,0.25,136.07,136.0,1.83420836]
[1642629393344,3.19,136.07,135.99,1.83420836]
[1642629393743,35.99197092,136.06,135.98,1.83420836]
[1642629393944,24.9653,136.05,135.98,1.83420836]
[1642629394147,35.996,136.05,135.97,1.83420836]
[1642629394347,35.996,136.05,135.99,0.25]
[1642629395551,35.996,136.05,135.98,0.25]
[1642629401757,24.9653,136.05,135.98,0.25]
[1642629402154,24.9653,136.05,135.98,2.08420836]
[1642629402360,24.9653,136.05,135.98,1.83420836]
[1642629402555,0.25,136.04,135.97,1.83420836]
[1642629403256,0.25,136.04,135.96,1.83420836]
[1642629403656,0.25,136.04,135.97,0.25]
[1642629404057,0.25,136.04,135.97,2.08420836]
[1642629404359,0.25,136.04,135.96,0.25]
[1642629404757,0.25,136.04,135.96,2.08420836]
[1642629404957,0.25,136.04,135.96,1.83420836]
[1642629405157,0.25,136.04,135.95,1.83420836]
[1642629405357,43.56131177,136.02,135.94,1.83420836]
[1642629405557,49.99031177,136.02,135.94,1.83420836]
[1642629405757,0.25,136.01,135.93,4.77520836]
[1642629405957,9.191,136.01,135.93,1.83420836]
[1642629406159,23.7718,136.0,135.93,1.83420836]
[1642629406563,2.941,135.99,135.92,5.66662096]
[1642629406760,26.7138,136.0,135.92,5.66662096]
[1642629406961,23.7718,136.0,135.92,5.66662096]
[1642629407361,36.9499816,135.99,135.92,5.66662096]
[1642629407560,37.1999816,135.99,135.92,5.66662096]
[1642629409663,37.1999816,135.99,135.92,3.8324126]
[1642629409862,37.1999816,135.99,135.92,5.66662096]
[1642629410263,37.1999816,135.99,135.92,3.8324126]
[1642629410465,37.1999816,135.99,135.92,5.66662096]
[1642629410665,37.1999816,135.99,135.92,3.8324126]
[1642629411768,37.1999816,135.99,135.91,1.83420836]
[1642629412071,24.689,135.98,135.91,1.83420836]
[1642629412866,24.689,135.98,135.92,0.25]
[1642629413066,24.689,135.98,135.91,1.83420836]
[1642629413267,24.689,135.98,135.9,1.83420836]
[1642629413466,24.689,135.98,135.91,1.83420836]
[1642629414370,24.689,135.98,135.9,1.83420836]
[1642629414668,24.689,135.98,135.9,2.08420836]
[1642629415666,27.631,135.98,135.9,2.08420836]